fUST/lending_fUST_20250302
["ID","MTS","AMOUNT","RATE_DAILY","PERIOD"]
[355002574,1740861047152,-500.0,0.00024657,2]
[355002575,1740861047161,-300.26517633,0.00024673,2]
[355002576,1740861047171,-344.33537435,0.00024673,2]
[355002577,1740861047181,-500.0,0.00024673,2]
[355002578,1740861047190,-268.64932979,0.00024673,2]
[355002579,1740861047200,-483.69148931,0.00024673,2]
[355002580,1740861047210,-245.42644678,0.00024673,2]
[355002581,1740861047220,-500.0,0.00024673,2]
[355002582,1740861047230,-500.0,0.00024673,2]
[355002583,1740861047239,-635.90818156,0.00024673,2]
[355002584,1740861047249,-500.0,0.00024673,2]
[355002585,1740861047259,-500.0,0.00024673,2]
[355002586,1740861047269,-500.0,0.00024673,2]
[355002587,1740861047279,-500.0,0.00024673,2]
[355002588,1740861047289,-500.0,0.00024673,2]
[355002589,1740861047299,-205.9446351,0.00024673,2]
[355002590,1740861047308,-500.0,0.00024673,2]
[355002591,1740861047317,-500.0,0.00024673,2]
[355002592,1740861047327,-160.32922264,0.00024673,2]
[355002593,1740861047336,-151.47840005,0.00024673,2]
[355002594,1740861047345,-500.0,0.00024673,2]
[355002595,1740861047355,-500.0,0.00024673,2]
[355002596,1740861047365,-500.0,0.00024673,2]
[355002597,1740861047375,-500.0,0.00024673,2]
[355002598,1740861047386,-500.0,0.00024673,2]
[355002599,1740861047396,-500.0,0.00024673,2]
[355002600,1740861047407,-500.0,0.00024673,2]
[355002601,1740861047416,-500.0,0.00024673,2]
[355002602,1740861047426,-251.58457217,0.00024673,2]
[355002603,1740861047436,-500.0,0.00024673,2]
[355002604,1740861047446,-500.0,0.00024673,2]
[355002605,1740861047457,-182.98191379,0.00024678,2]
[355002606,1740861047467,-420.31,0.000247,7]
[355002607,1740861047477,-182.98191379,0.00024831,2]
[355002608,1740861047487,-500.0,0.00024931,2]
[355002609,1740861047496,-501.90072505,0.00024931,2]
[355002610,1740861047506,-500.0,0.00024931,2]
[355002611,1740861047516,-500.0,0.00024931,2]
[355002612,1740861047525,-500.0,0.00024931,2]
[355002613,1740861047535,-500.0,0.00024931,2]
[355002614,1740861047544,-503.42800636,0.00024931,2]
[355002615,1740861047554,-500.0,0.00024931,2]
[355002616,1740861047564,-500.0,0.00024931,2]
[355002617,1740861047573,-500.0,0.00024931,2]
[355002618,1740861047583,-500.0,0.00024931,2]
[355002619,1740861047593,-504.89299059,0.00024931,2]
[355002620,1740861047670,-500.0,0.00024931,2]
[355002621,1740861047679,-500.0,0.00024931,2]
[355002622,1740861047689,-500.0,0.00024931,2]
[355002623,1740861047700,-503.29367334,0.00024931,2]
[355002624,1740861047709,-500.0,0.00024931,2]
[355002625,1740861047718,-500.0,0.00024931,2]
[355002626,1740861047727,-304.11530453,0.00024931,2]
[355002627,1740861047736,-500.0,0.00024931,2]
[355002628,1740861047746,-415.31937611,0.00024931,2]
[355002629,1740861047755,-500.0,0.00024931,2]
[355002630,1740861047764,-500.0,0.00024931,2]
[355002631,1740861047773,-500.0,0.00024931,2]
[355002632,1740861047782,-500.0,0.00024931,2]
[355002633,1740861047792,-502.77093405,0.00024931,2]
[355002634,1740861047807,-500.0,0.00024931,2]
[355002635,1740861047816,-629.38,0.00024931,2]
[355002636,1740861047830,-727.28,0.00024931,2]
[355002637,1740861047843,-505.61208101,0.00024931,2]
[355002638,1740861047863,-500.0,0.00024931,2]
[355002639,1740861047873,-500.0,0.00024931,2]
[355002640,1740861047882,-500.0,0.00024931,2]
[355002641,1740861047891,-500.0,0.00024931,2]
[355002642,1740861047901,-500.0,0.00024931,2]
[355002643,1740861047910,-509.6130407,0.00024931,2]
[355002644,1740861047919,-500.0,0.00024931,2]
[355002645,1740861047928,-483.64572853,0.00024931,2]
[355002646,1740861047937,-500.0,0.00024931,2]
[355002647,1740861047946,-500.0,0.00024931,2]
[355002648,1740861047956,-500.0,0.00024931,2]
[355002649,1740861047966,-590.5,0.00024931,2]
[355002650,1740861047975,-500.0,0.00024931,2]
[355002651,1740861047986,-500.0,0.00024931,2]
[355002652,1740861048000,-500.0,0.00024931,2]
[355002653,1740861048009,-876.11,0.00024931,2]
[355002654,1740861048019,-500.0,0.00024931,2]
[355002655,1740861048030,-500.0,0.00024931,2]
[355002656,1740861048040,-500.0,0.00024931,2]
[355002657,1740861048050,-500.0,0.00024931,2]
[355002658,1740861048059,-704.92,0.00024931,2]
[355002659,1740861048069,-500.0,0.00024931,2]
[355002660,1740861048078,-500.0,0.00024931,2]
[355002661,1740861048088,-500.0,0.00024931,2]
[355002662,1740861048097,-500.0,0.00024931,2]
[355002663,1740861048107,-502.19316259,0.00024931,2]
[355002664,1740861048117,-500.0,0.00024931,2]
[355002665,1740861048126,-500.0,0.00024931,2]
[355002666,1740861048136,-513.45228912,0.00024931,2]
[355002667,1740861048146,-500.0,0.00024931,2]
[355002668,1740861048155,-500.0,0.00024931,2]
[355002669,1740861048165,-500.0,0.00024931,2]
[355002670,1740861048174,-500.0,0.00024931,2]
[355002671,1740861048184,-500.0,0.00024931,2]
[355002672,1740861048194,-525.66281093,0.00024931,2]
[355002673,1740861048205,-585.82,0.00024931,2]
[355002674,1740861048215,-500.0,0.00024931,2]
[355002675,1740861048225,-500.0,0.00024931,2]
[355002676,1740861048235,-200.0,0.00024931,2]
[355002677,1740861048244,-500.0,0.00024931,2]
[355002678,1740861048254,-500.0,0.00024931,2]
[355002679,1740861048263,-464.74502592,0.00024931,2]
[355002680,1740861048272,-500.0,0.00024931,2]
[355002681,1740861048282,-500.0,0.00024931,2]
[355002682,1740861048292,-507.40677207,0.00024931,2]
[355002683,1740861048302,-500.0,0.00024931,2]
[355002684,1740861048311,-500.0,0.00024931,2]
[355002685,1740861048320,-527.62097271,0.00024931,2]
[355002686,1740861048330,-614.68,0.00024931,2]
[355002687,1740861048340,-500.0,0.00024931,2]
[355002688,1740861048349,-500.0,0.00024931,2]
[355002689,1740861048359,-500.0,0.00024931,2]
[355002690,1740861048368,-500.0,0.00024931,2]
[355002691,1740861048378,-500.0,0.00024931,2]
[355002692,1740861048387,-500.0,0.00024931,2]
[355002693,1740861048396,-500.0,0.00024931,2]
[355002694,1740861048405,-500.0,0.00024931,2]
[355002695,1740861048414,-500.0,0.00024931,2]
[355002696,1740861048423,-500.0,0.00024931,2]
[355002697,1740861048433,-509.34185723,0.00024931,2]
[355002698,1740861048443,-500.0,0.00024931,2]
[355002699,1740861048453,-500.0,0.00024931,2]
[355002700,1740861048462,-540.57,0.00024931,2]
[355002701,1740861048472,-500.0,0.00024931,2]
[355002702,1740861048481,-515.28015119,0.00024931,2]
[355002703,1740861048491,-171.00372377,0.00024931,2]
[355002704,1740861048500,-500.0,0.00024931,2]
[355002705,1740861048510,-922.22,0.00024931,2]
[355002706,1740861048519,-500.0,0.00024931,2]
[355002707,1740861048528,-500.0,0.00024931,2]
[355002708,1740861048538,-500.0,0.00024931,2]
[355002709,1740861048547,-513.08525506,0.00024931,2]
[355002710,1740861048556,-500.0,0.00024931,2]
[355002711,1740861048565,-500.0,0.00024931,2]
[355002712,1740861048574,-500.0,0.00024931,2]
[355002713,1740861048583,-500.0,0.00024931,2]
[355002714,1740861048593,-500.0,0.00024931,2]
[355002715,1740861048602,-500.0,0.00024931,2]
[355002716,1740861048612,-500.0,0.00024931,2]
[355002717,1740861048621,-500.0,0.00024931,2]
[355002718,1740861048630,-500.0,0.00024931,2]
[355002719,1740861048640,-500.0,0.00024931,2]
[355002720,1740861048649,-500.0,0.00024931,2]
[355002721,1740861048658,-398.00399413,0.00024931,2]
[355002722,1740861048668,-670.6,0.00024931,2]
[355002723,1740861048677,-500.0,0.00024931,2]
[355002724,1740861048687,-500.0,0.00024931,2]
[355002725,1740861048696,-500.0,0.00024931,2]
[355002726,1740861048707,-500.0,0.00024931,2]
[355002727,1740861048715,-500.0,0.00024931,2]
[355002728,1740861048725,-500.0,0.00024931,2]
[355002729,1740861048734,-500.0,0.00024931,2]
[355002730,1740861048743,-500.0,0.00024931,2]
[355002731,1740861048752,-503.76,0.00024931,2]
[355002732,1740861048761,-500.0,0.00024931,2]
[355002733,1740861048770,-500.0,0.00024931,2]
[355002734,1740861048779,-500.0,0.00024931,2]
[355002735,1740861048788,-1198.29,0.00024931,2]
[355002736,1740861048798,-500.0,0.00024931,2]
[355002737,1740861048808,-514.97808468,0.00024931,2]
[355002738,1740861048818,-570.01,0.00024931,2]
[355002739,1740861048827,-616.87498064,0.00024931,2]
[355002740,1740861048836,-440.47841883,0.00024931,2]
[355002741,1740861048845,-500.0,0.00024931,2]
[355002742,1740861048854,-500.0,0.00024931,2]
[355002743,1740861048863,-500.0,0.00024931,2]
[355002744,1740861048872,-500.0,0.00024931,2]
[355002745,1740861048881,-500.0,0.00024931,2]
[355002746,1740861048891,-500.0,0.00024931,2]
[355002747,1740861048900,-500.0,0.00024931,2]
[355002748,1740861048910,-500.0,0.00024931,2]
[355002749,1740861048919,-500.0,0.00024931,2]
[355002750,1740861048928,-500.0,0.00024931,2]
[355002751,1740861048937,-500.0,0.00024931,2]
[355002752,1740861048947,-1551.41,0.00024931,2]
[355002753,1740861048957,-713.81,0.00024931,2]
[355002754,1740861048966,-1988.42,0.00024931,2]
[355002755,1740861048975,-500.0,0.00024931,2]
[355002756,1740861048985,-500.0,0.00024931,2]
[355002757,1740861048999,-500.0,0.00024931,2]
[355002758,1740861049008,-500.0,0.00024931,2]
[355002759,1740861049017,-500.0,0.00024931,2]
[355002760,1740861049027,-534.18,0.00024931,2]
[355002761,1740861049036,-500.0,0.00024931,2]
[355002762,1740861049045,-500.0,0.00024931,2]
[355002763,1740861049054,-1326.35,0.00024931,2]
[355002764,1740861049063,-500.0,0.00024931,2]
[355002765,1740861049074,-500.0,0.00024931,2]
[355002766,1740861049084,-1479.58,0.00024931,2]
[355002767,1740861049093,-500.0,0.00024931,2]
[355002768,1740861049104,-500.0,0.00024931,2]
[355002769,1740861049113,-500.0,0.00024931,2]
[355002770,1740861049122,-500.0,0.00024931,2]
[355002771,1740861049131,-500.0,0.00024931,2]
[355002772,1740861049141,-500.0,0.00024931,2]
[355002773,1740861049150,-500.0,0.00024931,2]
[355002774,1740861049160,-500.0,0.00024931,2]
[355002775,1740861049169,-500.0,0.00024931,2]
[355002776,1740861049179,-500.0,0.00024931,2]
[355002777,1740861049188,-525.58,0.00024931,2]
[355002778,1740861049197,-501.97,0.00024931,2]
[355002779,1740861049208,-1245.78,0.00024931,2]
[355002780,1740861049217,-247.28111052,0.00024931,2]
[355002781,1740861049227,-567.21,0.00024931,2]
[355002782,1740861049236,-500.0,0.00024931,2]
[355002783,1740861049246,-500.0,0.00024931,2]
[355002784,1740861049255,-500.0,0.00024931,2]
[355002785,1740861049265,-839.46,0.00024931,2]
[355002786,1740861049274,-500.0,0.00024931,2]
[355002787,1740861049284,-500.0,0.00024931,2]
[355002788,1740861049293,-500.0,0.00024931,2]
[355002789,1740861049303,-712.81,0.00024931,2]
[355002790,1740861049313,-500.0,0.00024931,2]
[355002791,1740861049322,-1456.28,0.00024931,2]
[355002792,1740861049332,-500.0,0.00024931,2]
[355002793,1740861049341,-500.0,0.00024931,2]
[355002794,1740861049350,-500.0,0.00024931,2]
[355002795,1740861049359,-500.0,0.00024931,2]
[355002796,1740861049369,-500.0,0.00024931,2]
[355002797,1740861049379,-1949.49,0.00024931,2]
[355002798,1740861049389,-500.0,0.00024931,2]
[355002799,1740861049398,-500.0,0.00024931,2]
[355002800,1740861049408,-500.0,0.00024931,2]
[355002801,1740861049418,-500.0,0.00024931,2]
[355002802,1740861049430,-500.0,0.00024931,2]
[355002803,1740861049440,-892.91,0.00024931,2]
[355002804,1740861049451,-528.54,0.00024931,2]
[355002805,1740861049466,-950.74,0.00024931,2]
[355002806,1740861049476,-1020.57,0.00024931,2]
[355002807,1740861049485,-500.0,0.00024931,2]
[355002808,1740861049494,-500.0,0.00024931,2]
[355002809,1740861049504,-500.0,0.00024931,2]
[355002810,1740861049514,-500.0,0.00024931,2]
[355002811,1740861049523,-659.39,0.00024931,2]
[355002812,1740861049533,-888.59,0.00024931,2]
[355002813,1740861049542,-500.0,0.00024931,2]
[355002814,1740861049552,-500.0,0.00024931,2]
[355002815,1740861049561,-652.81,0.00024931,2]
[355002816,1740861049570,-500.0,0.00024931,2]
[355002817,1740861049580,-500.0,0.00024931,2]
[355002818,1740861049590,-500.0,0.00024931,2]
[355002819,1740861049599,-500.0,0.00024931,2]
[355002820,1740861049609,-500.0,0.00024931,2]
[355002821,1740861049618,-500.0,0.00024931,2]
[355002822,1740861049628,-500.0,0.00024931,2]
[355002823,1740861049637,-909.97,0.00024931,2]
[355002824,1740861049647,-997.21,0.00024931,2]
[355002825,1740861049656,-744.27,0.00024931,2]
[355002826,1740861049665,-500.0,0.00024931,2]
[355002827,1740861049675,-500.0,0.00024931,2]
[355002828,1740861049684,-500.0,0.00024931,2]
[355002829,1740861049693,-500.0,0.00024931,2]
[355002830,1740861049703,-505.23536334,0.00024931,2]
[355002831,1740861049711,-1117.29,0.00024931,2]
[355002832,1740861049721,-835.31,0.00024931,2]
[355002833,1740861049731,-502.61749203,0.00024931,2]
[355002834,1740861049741,-500.0,0.00024931,2]
[355002835,1740861049751,-728.27,0.00024931,2]
[355002836,1740861049760,-500.0,0.00024931,2]
[355002837,1740861049768,-902.16,0.00024931,2]
[355002838,1740861049778,-1000.0,0.00024931,2]
[355002839,1740861049787,-987.27,0.00024931,2]
[355002840,1740861049796,-500.0,0.00024931,2]
[355002841,1740861049806,-500.0,0.00024931,2]
[355002842,1740861049815,-500.0,0.00024931,2]
[355002843,1740861049824,-1500.13,0.00024931,2]
[355002844,1740861049834,-500.0,0.00024931,2]
[355002845,1740861049843,-865.5,0.00024931,2]
[355002846,1740861049852,-500.0,0.00024931,2]
[355002847,1740861049861,-1419.66,0.00024931,2]
[355002848,1740861049871,-500.0,0.00024931,2]
[355002849,1740861049880,-500.0,0.00024931,2]
[355002850,1740861049889,-188.34246364,0.00024931,2]
[355002851,1740861049898,-1000.19,0.00024931,2]
[355002852,1740861049907,-500.0,0.00024931,2]
[355002853,1740861049916,-500.0,0.00024931,2]
[355002854,1740861049925,-1203.68,0.00024931,2]
[355002855,1740861049934,-500.0,0.00024931,2]
[355002856,1740861049944,-500.0,0.00024931,2]
[355002857,1740861049953,-500.0,0.00024931,2]
[355002858,1740861049963,-500.0,0.00024931,2]
[355002859,1740861049972,-3503.95,0.00024931,2]
[355002860,1740861049981,-500.0,0.00024931,2]
[355002861,1740861049994,-500.0,0.00024931,2]
[355002862,1740861050003,-599.64,0.00024931,2]
[355002863,1740861050012,-500.0,0.00024931,2]
[355002864,1740861050021,-767.25,0.00024931,2]
[355002865,1740861050032,-500.0,0.00024931,2]
[355002866,1740861050041,-500.0,0.00024931,2]
[355002867,1740861050050,-500.0,0.00024931,2]
[355002868,1740861050059,-500.0,0.00024931,2]
[355002869,1740861050070,-500.0,0.00024931,2]
[355002870,1740861050079,-696.81,0.00024931,2]
[355002871,1740861050088,-500.0,0.00024931,2]
[355002872,1740861050097,-1050.47,0.00024931,2]
[355002873,1740861050107,-882.18,0.00024931,2]
[355002874,1740861050116,-500.0,0.00024931,2]
[355002875,1740861050125,-1857.92,0.00024931,2]
[355002876,1740861050134,-500.0,0.00024931,2]
[355002877,1740861050143,-500.0,0.00024931,2]
[355002878,1740861050152,-500.0,0.00024931,2]
[355002879,1740861050161,-500.0,0.00024931,2]
[355002880,1740861050170,-635.25,0.00024931,2]
[355002881,1740861050179,-911.09,0.00024931,2]
[355002882,1740861050188,-1063.22,0.00024931,2]
[355002883,1740861050197,-500.0,0.00024931,2]
[355002884,1740861050207,-500.0,0.00024931,2]
[355002885,1740861050216,-734.84,0.00024931,2]
[355002886,1740861050226,-1574.73,0.00024931,2]
[355002887,1740861050235,-500.0,0.00024931,2]
[355002888,1740861050245,-500.0,0.00024931,2]
[355002889,1740861050254,-500.0,0.00024931,2]
[355002890,1740861050263,-670.09,0.00024931,2]
[355002891,1740861050272,-557.83,0.00024931,2]
[355002892,1740861050281,-500.0,0.00024931,2]
[355002893,1740861050290,-500.0,0.00024931,2]
[355002894,1740861050300,-500.0,0.00024931,2]
[355002895,1740861050309,-876.07,0.00024931,2]
[355002896,1740861050318,-500.0,0.00024931,2]
[355002897,1740861050327,-500.0,0.00024931,2]
[355002898,1740861050335,-500.0,0.00024931,2]
[355002899,1740861050344,-275.52810806,0.00024931,2]
[355002900,1740861050353,-500.0,0.00024931,2]
[355002901,1740861050362,-500.0,0.00024931,2]
[355002902,1740861050371,-503.79382611,0.00024931,2]
[355002903,1740861050380,-500.0,0.00024931,2]
[355002904,1740861050390,-500.0,0.00024931,2]
[355002905,1740861050399,-504.25358338,0.00024931,2]
[355002906,1740861050408,-500.0,0.00024931,2]
[355002907,1740861050418,-500.0,0.00024931,2]
[355002908,1740861050427,-365.24870982,0.00024931,2]
[355002909,1740861050436,-500.0,0.00024931,2]
[355002910,1740861050446,-500.0,0.00024931,2]
[355002911,1740861050455,-500.0,0.00024931,2]
[355002912,1740861050465,-500.0,0.00024931,2]
[355002913,1740861050474,-500.0,0.00024931,2]
[355002914,1740861050483,-500.0,0.00024931,2]
[355002915,1740861050492,-5424.6,0.00024931,2]
[355002916,1740861050501,-1228.03,0.00024931,2]
[355002917,1740861050510,-500.0,0.00024931,2]
[355002918,1740861050520,-796.66,0.00024931,2]
[355002919,1740861050529,-500.0,0.00024931,2]
[355002920,1740861050538,-500.0,0.00024931,2]
[355002921,1740861050547,-651.12,0.00024931,2]
[355002922,1740861050557,-500.0,0.00024931,2]
[355002923,1740861050566,-500.0,0.00024931,2]
[355002924,1740861050575,-500.0,0.00024931,2]
[355002925,1740861050584,-508.93094798,0.00024931,2]
[355002926,1740861050593,-12044.95,0.00024931,2]
[355002927,1740861050603,-500.0,0.00024931,2]
[355002928,1740861050612,-500.0,0.00024931,2]
[355002929,1740861050621,-1744.62,0.00024931,2]
[355002930,1740861050630,-802.49,0.00024931,2]
[355002931,1740861050639,-500.0,0.00024931,2]
[355002932,1740861050648,-500.0,0.00024931,2]
[355002933,1740861050658,-500.0,0.00024931,2]
[355002934,1740861050667,-500.0,0.00024931,2]
[355002935,1740861050677,-500.0,0.00024931,2]
[355002936,1740861050686,-5787.3,0.00024931,2]
[355002937,1740861050695,-539.63,0.00024931,2]
[355002938,1740861050704,-500.0,0.00024931,2]
[355002939,1740861050713,-500.0,0.00024931,2]
[355002940,1740861050722,-1388.97,0.00024931,2]
[355002941,1740861050731,-500.0,0.00024931,2]
[355002942,1740861050740,-970.51,0.00024931,2]
[355002943,1740861050749,-500.0,0.00024931,2]
[355002944,1740861050758,-4306.64,0.00024931,2]
[355002945,1740861050769,-500.0,0.00024931,2]
[355002946,1740861050778,-500.0,0.00024931,2]
[355002947,1740861050787,-500.0,0.00024931,2]
[355002948,1740861050796,-500.0,0.00024931,2]
[355002949,1740861050805,-846.22,0.00024931,2]
[355002950,1740861050814,-871.16,0.00024931,2]
[355002951,1740861050823,-1500.57,0.00024931,2]
[355002952,1740861050832,-500.0,0.00024931,2]
[355002953,1740861050842,-500.0,0.00024931,2]
[355002954,1740861050851,-500.0,0.00024931,2]
[355002955,1740861050860,-500.0,0.00024931,2]
[355002956,1740861050870,-500.0,0.00024931,2]
[355002957,1740861050879,-500.0,0.00024931,2]
[355002958,1740861050888,-4171.54,0.00024931,2]
[355002959,1740861050897,-1128.23,0.00024931,2]
[355002960,1740861050907,-500.0,0.00024931,2]
[355002961,1740861050917,-500.0,0.00024931,2]
[355002962,1740861050926,-588.75,0.00024931,2]
[355002963,1740861050935,-500.0,0.00024931,2]
[355002964,1740861050944,-500.0,0.00024931,2]
[355002965,1740861050954,-500.0,0.00024931,2]
[355002966,1740861050963,-1552.78,0.00024931,2]
[355002967,1740861050972,-500.0,0.00024931,2]
[355002968,1740861050983,-864.1,0.00024931,2]
[355002969,1740861050993,-500.0,0.00024931,2]
[355002970,1740861051006,-558.06420154,0.00024931,2]
[355002971,1740861051015,-500.0,0.00024931,2]
[355002972,1740861051025,-500.0,0.00024931,2]
[355002973,1740861051034,-4403.4,0.00024931,2]
[355002974,1740861051044,-500.0,0.00024931,2]
[355002975,1740861051054,-588.64,0.00024931,2]
[355002976,1740861051063,-500.0,0.00024931,2]
[355002977,1740861051072,-500.0,0.00024931,2]
[355002978,1740861051082,-500.0,0.00024931,2]
[355002979,1740861051091,-500.0,0.00024931,2]
[355002980,1740861051102,-7955.19,0.00024931,2]
[355002981,1740861051111,-1429.66,0.00024931,2]
[355002982,1740861051121,-500.0,0.00024931,2]
[355002983,1740861051131,-12563.17,0.00024931,2]
[355002984,1740861051141,-500.0,0.00024931,2]
[355002985,1740861051150,-500.0,0.00024931,2]
[355002986,1740861051159,-500.0,0.00024931,2]
[355002987,1740861051169,-500.0,0.00024931,2]
[355002988,1740861051179,-634.14,0.00024931,2]
[355002989,1740861051188,-1246.05,0.00024931,2]
[355002990,1740861051199,-2464.65,0.00024931,2]
[355002991,1740861051209,-141243.88,0.00024931,2]
[355002992,1740861051218,-965.27,0.00024931,2]
[355002993,1740861051227,-500.0,0.00024931,2]
[355002994,1740861051237,-500.0,0.00024931,2]
[355002995,1740861051246,-8561.98,0.00024931,2]
[355002996,1740861051256,-500.0,0.00024931,2]
[355002997,1740861051267,-2861.24,0.00024931,2]
[355002998,1740861051276,-500.0,0.00024931,2]
[355002999,1740861051285,-711.47,0.00024931,2]
[355003000,1740861051294,-500.0,0.00024931,2]
[355003001,1740861051304,-513.72178489,0.00024931,2]
[355003002,1740861051313,-500.0,0.00024931,2]
[355003003,1740861051323,-2348.22,0.00024931,2]
[355003004,1740861051332,-1560.38,0.00024931,2]
[355003005,1740861051342,-500.0,0.00024931,2]
[355003006,1740861051352,-500.0,0.00024931,2]
[355003007,1740861051361,-500.0,0.00024931,2]
[355003008,1740861051371,-500.0,0.00024931,2]
[355003009,1740861051381,-3636.22,0.00024931,2]
[355003010,1740861051391,-823.04,0.00024931,2]
[355003011,1740861051400,-2635.69,0.00024931,2]
[355003012,1740861051410,-1000.0,0.00024931,5]
[355003013,1740861051419,-500.0,0.00024931,2]
[355003014,1740861051429,-500.0,0.00024931,2]
[355003015,1740861051439,-500.0,0.00024931,2]
[355003016,1740861051449,-500.0,0.00024931,2]
[355003017,1740861051458,-500.0,0.00024931,2]
[355003018,1740861051467,-1749.34,0.00024931,2]
[355003019,1740861051477,-1019.73,0.00024931,2]
[355003020,1740861051488,-821.88,0.00024931,2]
[355003021,1740861051497,-500.0,0.00024931,2]
[355003022,1740861051507,-631.69,0.00024931,2]
[355003023,1740861051517,-500.0,0.00024931,2]
[355003024,1740861051526,-500.0,0.00024931,2]
[355003025,1740861051537,-500.0,0.00024931,2]
[355003026,1740861051547,-500.0,0.00024931,2]
[355003027,1740861051557,-500.0,0.00024931,2]
[355003028,1740861051567,-1429.49,0.00024931,2]
[355003029,1740861051577,-500.0,0.00024931,2]
[355003030,1740861051587,-500.0,0.00024931,2]
[355003031,1740861051597,-500.0,0.00024931,2]
[355003032,1740861051607,-537.22,0.00024931,2]
[355003033,1740861051617,-500.0,0.00024931,2]
[355003034,1740861051627,-500.0,0.00024931,2]
[355003035,1740861051636,-500.0,0.00024931,2]
[355003036,1740861051646,-1306.75,0.00024931,2]
[355003037,1740861051655,-505.32427382,0.00024931,2]
[355003038,1740861051668,-760.73,0.00024931,2]
[355003039,1740861051678,-500.0,0.00024931,2]
[355003040,1740861051688,-500.0,0.00024931,2]
[355003041,1740861051698,-500.0,0.00024931,2]
[355003042,1740861051708,-500.0,0.00024931,2]
[355003043,1740861051717,-500.0,0.00024931,2]
[355003044,1740861051727,-500.0,0.00024931,2]
[355003045,1740861051737,-572.33,0.00024931,2]
[355003046,1740861051747,-1082.81,0.00024931,2]
[355003047,1740861051756,-500.0,0.00024931,2]
[355003048,1740861051766,-500.0,0.00024931,2]
[355003049,1740861051776,-614.0,0.00024931,2]
[355003050,1740861051786,-500.0,0.00024931,2]
[355003051,1740861051796,-500.0,0.00024931,2]
[355003052,1740861051805,-500.0,0.00024931,2]
[355003053,1740861051815,-1623.64,0.00024931,2]
[355003054,1740861051825,-1047.84,0.00024931,2]
[355003055,1740861051835,-911.74,0.00024931,2]
[355003056,1740861051845,-500.0,0.00024931,2]
[355003057,1740861051854,-500.0,0.00024931,2]
[355003058,1740861051864,-500.0,0.00024931,2]
[355003059,1740861051874,-628.71,0.00024931,2]
[355003060,1740861051883,-500.0,0.00024931,2]
[355003061,1740861051895,-7449.65,0.00024931,2]
[355003062,1740861051905,-3120.25,0.00024931,2]
[355003063,1740861051914,-500.0,0.00024931,2]
[355003064,1740861051924,-1381.04,0.00024931,2]
[355003065,1740861051934,-500.0,0.00024931,2]
[355003066,1740861051944,-500.0,0.00024931,2]
[355003067,1740861051953,-500.0,0.00024931,2]
[355003068,1740861051963,-639.49,0.00024931,2]
[355003069,1740861051973,-1011.28,0.00024931,2]
[355003070,1740861051983,-1913.84,0.00024931,2]
[355003071,1740861051993,-1337.87,0.00024931,2]
[355003072,1740861052005,-500.0,0.00024931,2]
[355003073,1740861052015,-500.0,0.00024931,2]